[Event "EYCC Girls-U16 2019"]
[Site "Bratislava"]
[Date "2019.08.05"]
[Round "4.13"]
[White "Guillo Longares, Cecilia"]
[Black "Mkrtchyan, Mariam"]
[Result "0-1"]
[ECO "A40"]
[WhiteElo "1916"]
[BlackElo "1981"]
[Annotator "NA"]
[PlyCount "90"]
[EventDate "2019.08.02"]
[EventType "swiss"]
[EventCountry "SVK"]
[SourceTitle "playchess.com"]
[Source "ChessBase"]
[SourceQuality "1"]
[TimeControl "40/5400+30:1800+30"]

1. d4 {[%emt 0:00:00]} g6 {[%emt 0:00:00]} 2. c4 {[%emt 0:00:00]} Bg7 {[%emt 0:00:00]} 3. Nf3 {[%emt 0:00:00]} d6 {[%emt 0:00:00]} 4. g3 {[%emt 0:00:00]} Nd7 {[%emt 0:00:00]} 5. Bg2 {[%emt 0:00:00]} e5 {[%emt 0:00:00]} 6. Nc3 {[%emt 0:00:16]} Ne7 {[%emt 0:00:15]} 7. O-O {[%emt 0:00:08]} O-O {[%emt 0:00:03]} 8. e4 {[%emt 0:00:07]} exd4 {[%emt 0:00:15]} 9. Nxd4 {[%emt 0:00:08]} Nc6 {[%emt 0:00:04]} 10. Nde2 {[%emt 0:00:10]} a5 {[%emt 0:00:29]} 11. Be3 {[%emt 0:01:33]} Nc5 {[%emt 0:06:36]} 12. Qd2 {[%emt 0:04:58]} Be6 {[%emt 0:07:38]} 13. b3 {[%emt 0:01:44]} a4 {[%emt 0:03:40]} 14. Rab1 {[%emt 0:01:33]} axb3 {[%emt 0:01:55]} 15. axb3 {[%emt 0:00:06]} Ra3 {[%emt 0:04:25]} 16. Qc2 {[%emt 0:01:55]} Nb4 {[%emt 0:07:48]} 17. Qd1 {[%emt 0:02:22]} c6 {[%emt 0:01:44]} 18. Bd4 {[%emt 0:08:29]} Bxd4 {[%emt 0:12:27]} 19. Nxd4 {[%emt 0:00:25]} Qf6 {[%emt 0:03:18]} 20. Nce2 {[%emt 0:05:42]} Rfa8 {[%emt 0:05:35]} 21. f4 {[%emt 0:06:24]} Bg4 {[%emt 0:04:12]} 22. h3 {[%emt 0:09:37]} Bxe2 {[%emt 0:01:19]} 23. Nxe2 {[%emt 0:00:06]} Ra2 {[%emt 0:02:10]} 24. g4 {[%emt 0:05:59]} h6 {[%emt 0:06:16]} 25. Ng3 {[%emt 0:14:50]} Ncd3 {[%emt 0:08:29]} 26. Qf3 {[%emt 0:10:05]} Rc2 {[%emt 0:02:18]} 27. e5 {[%emt 0:05:48]} dxe5 {[%emt 0:07:58]} 28. fxe5 {[%emt 0:12:39]} Qe7 {[%emt 0:02:34]} 29. Ra1 {[%emt 0:07:20]} Rxa1 {[%emt 0:02:39]} 30. Rxa1 {[%emt 0:00:01]} Qxe5 {[%emt 0:00:48]} 31. Rf1 {[%emt 0:00:01]} Qe7 {[%emt 0:01:35]} 32. Ne4 {[%emt 0:00:36]} Kg7 {[%emt 0:02:51]} 33. Qe3 {[%emt 0:01:55]} Qe5 {[%emt 0:01:56]} 34. Qf3 {[%emt 0:00:36]} Qe7 {[%emt 0:00:33]} 35. Qe3 {[%emt 0:00:04]} c5 {[%emt 0:02:02]} 36. Qf3 {[%emt 0:01:12]} Rb2 {[%emt 0:00:59]} 37. Nd6 {[%emt 0:00:44]} Ne5 {[%emt 0:02:11]} 38. Qd1 {[%emt 0:00:32]} Qg5 {[%emt 0:00:57]} 39. Nxb7 Qe3+ {[%emt 0:00:48]} 40. Kh1 {[%emt 0:00:00]} Nbd3 {[%emt 0:00:00]} 41. Kh2 {[%emt 0:07:55]} Nf4 {[%emt 0:02:09]} 42. Rxf4 {[%emt 0:00:39]} Qxf4+ {[%emt 0:00:05]} 43. Kh1 {[%emt 0:00:04]} Qg3 {[%emt 0:00:25]} 44. Qf1 {[%emt 0:01:46]} Rf2 {[%emt 0:00:04]} 45. Qg1 {[%emt 0:00:14]} Nf3 {[%emt 0:00:04]} 0-1

[Event "EYCC Girls-U16 2019"]
[Site "Bratislava"]
[Date "2019.08.05"]
[Round "4.14"]
[White "Radikovic, Anamarija"]
[Black "Ozbek, Busra"]
[Result "0-1"]
[ECO "B08"]
[WhiteElo "2021"]
[BlackElo "1866"]
[Annotator "NA"]
[PlyCount "111"]
[EventDate "2019.08.02"]
[EventType "swiss"]
[EventCountry "SVK"]
[SourceTitle "playchess.com"]
[Source "ChessBase"]
[SourceQuality "1"]
[TimeControl "40/5400+30:1800+30"]

1. d4 {[%emt 0:00:00]} d6 {[%emt 0:00:00]} 2. e4 {[%emt 0:00:00]} Nf6 {[%emt 0:00:00]} 3. Nc3 {[%emt 0:00:00]} g6 {[%emt 0:00:00]} 4. Nf3 {[%emt 0:00:35]} Bg7 {[%emt 0:00:10]} 5. Be2 {[%emt 0:00:27]} c6 {[%emt 0:01:40]} 6. a4 {[%emt 0:00:38]} Qc7 {[%emt 0:01:52]} 7. O-O {[%emt 0:05:41]} O-O {[%emt 0:00:19]} 8. Be3 {[%emt 0:01:12]} Nbd7 {[%emt 0:01:00]} 9. Qd2 {[%emt 0:00:32]} b6 {[%emt 0:01:21]} 10. Bh6 {[%emt 0:03:14]} Bb7 {[%emt 0:01:34]} 11. Rfe1 {[%emt 0:01:48]} e5 {[%emt 0:04:31]} 12. Bxg7 {[%emt 0:02:12]} Kxg7 {[%emt 0:00:08]} 13. dxe5 {[%emt 0:00:09]} dxe5 {[%emt 0:01:10]} 14. Bc4 {[%emt 0:01:18]} h6 {[%emt 0:05:01]} 15. Rad1 {[%emt 0:02:25]} a6 {[%emt 0:03:06]} 16. h4 {[%emt 0:02:51]} b5 {[%emt 0:01:54]} 17. Bf1 {[%emt 0:03:26]} b4 {[%emt 0:09:24]} 18. Ne2 {[%emt 0:00:11]} Qb6 {[%emt 0:08:51]} 19. Ng3 {[%emt 0:04:10]} Rad8 {[%emt 0:01:35]} 20. Qe2 {[%emt 0:10:02]} Ng4 {[%emt 0:05:04]} 21. h5 {[%emt 0:09:10]} a5 {[%emt 0:06:05]} 22. Nh4 {[%emt 0:01:35]} Ndf6 {[%emt 0:02:24]} 23. Qf3 {[%emt 0:03:39]} Bc8 {[%emt 0:05:27]} 24. Bd3 {[%emt 0:11:04]} Nh7 {[%emt 0:12:52]} 25. Bc4 {[%emt 0:06:31]} Ng5 {[%emt 0:03:51]} 26. Qe2 {[%emt 0:02:28]} Rd4 {[%emt 0:05:36]} 27. Rxd4 {[%emt 0:02:12]} Qxd4 {[%emt 0:00:20]} 28. b3 {[%emt 0:06:13]} Rd8 {[%emt 0:05:32]} 29. hxg6 {[%emt 0:03:53]} fxg6 {[%emt 0:00:18]} 30. Bd3 {[%emt 0:01:40]} Rf8 {[%emt 0:01:48]} 31. Rf1 {[%emt 0:00:08]} Kh7 {[%emt 0:02:22]} 32. Nf3 {[%emt 0:02:24]} Rxf3 {[%emt 0:05:21]} 33. gxf3 {[%emt 0:00:07]} Nh3+ {[%emt 0:00:04]} 34. Kh1 {[%emt 0:00:48]} Nhxf2+ {[%emt 0:01:08]} 35. Kg2 {[%emt 0:01:40]} Nxd3 {[%emt 0:00:17]} 36. fxg4 {[%emt 0:02:08]} Nf4+ {[%emt 0:00:09]} 37. Rxf4 {[%emt 0:00:04]} exf4 {[%emt 0:00:02]} 38. Nf1 {[%emt 0:01:59]} Kg7 {[%emt 0:02:19]} 39. Nh2 {[%emt 0:02:06]} Qc3 {[%emt 0:00:48]} 40. Nf1 {[%emt 0:00:00]} Be6 {[%emt 0:00:00]} 41. Qf2 {[%emt 0:05:11]} Qe5 {[%emt 0:06:28]} 42. Qe2 {[%emt 0:07:17]} Qg5 {[%emt 0:02:30]} 43. Nh2 {[%emt 0:00:43]} h5 {[%emt 0:00:42]} 44. Qd1 {[%emt 0:00:52]} Bxg4 {[%emt 0:01:30]} 45. Qd4+ {[%emt 0:00:04]} Kh7 {[%emt 0:03:19]} 46. Qa7+ {[%emt 0:00:07]} Kh6 {[%emt 0:00:25]} 47. Qb8 {[%emt 0:00:31]} Be6+ {[%emt 0:01:27]} 48. Kh1 {[%emt 0:00:22]} Qf6 {[%emt 0:03:27]} 49. Nf3 {[%emt 0:00:41]} Bg4 {[%emt 0:00:59]} 50. Nh2 {[%emt 0:00:12]} f3 {[%emt 0:00:30]} 51. e5 {[%emt 0:02:58]} Qf4 {[%emt 0:07:04]} 52. Qh8+ {[%emt 0:00:12]} Kg5 {[%emt 0:00:03]} 53. Qd8+ {[%emt 0:00:10]} Kf5 {[%emt 0:05:47]} 54. Qf6+ {[%emt 0:00:05]} Ke4 {[%emt 0:00:03]} 55. Qxf4+ {[%emt 0:00:25]} Kxf4 {[%emt 0:00:02]} 56. e6 {[%emt 0:00:00]} 0-1

[Event "EYCC Girls-U16 2019"]
[Site "Bratislava"]
[Date "2019.08.05"]
[Round "4.15"]
[White "Rzali, Sabina"]
[Black "Srdanovic, Jovana"]
[Result "0-1"]
[ECO "B20"]
[WhiteElo "1691"]
[BlackElo "1975"]
[Annotator "NA"]
[PlyCount "56"]
[EventDate "2019.08.02"]
[EventType "swiss"]
[EventCountry "SVK"]
[SourceTitle "playchess.com"]
[Source "ChessBase"]
[SourceQuality "1"]
[TimeControl "40/5400+30:1800+30"]

1. e4 {[%emt 0:00:00]} c5 {[%emt 0:00:00]} 2. b3 {[%emt 0:00:00]} Nc6 {[%emt 0:02:18]} 3. Bb2 {[%emt 0:00:03]} d6 {[%emt 0:00:21]} 4. f4 {[%emt 0:00:20]} Nf6 {[%emt 0:01:46]} 5. d3 {[%emt 0:00:32]} e5 {[%emt 0:13:44]} 6. fxe5 {[%emt 0:06:48]} dxe5 {[%emt 0:00:21]} 7. Nf3 {[%emt 0:00:58]} Bg4 {[%emt 0:00:36]} 8. h3 {[%emt 0:03:01]} Bxf3 {[%emt 0:00:12]} 9. Qxf3 {[%emt 0:00:21]} Nd4 {[%emt 0:01:58]} 10. Qf2 {[%emt 0:06:04]} Be7 {[%emt 0:03:51]} 11. Na3 {[%emt 0:07:56]} Nh5 {[%emt 0:05:18]} 12. h4 {[%emt 0:03:56]} O-O {[%emt 0:05:08]} 13. g4 {[%emt 0:08:54]} Nf4 {[%emt 0:06:22]} 14. O-O-O {[%emt 0:08:40]} Ng6 {[%emt 0:06:42]} 15. h5 {[%emt 0:06:33]} Bg5+ {[%emt 0:00:27]} 16. Kb1 {[%emt 0:00:30]} Nf4 {[%emt 0:01:25]} 17. Nc4 {[%emt 0:04:56]} Qc7 {[%emt 0:01:36]} 18. Ne3 {[%emt 0:06:46]} h6 {[%emt 0:00:59]} 19. Nf5 {[%emt 0:04:44]} a5 {[%emt 0:03:25]} 20. c3 {[%emt 0:07:56]} Nxf5 {[%emt 0:03:50]} 21. gxf5 {[%emt 0:05:51]} a4 {[%emt 0:03:16]} 22. bxa4 {[%emt 0:08:40]} Rxa4 {[%emt 0:01:26]} 23. a3 {[%emt 0:00:36]} Rfa8 {[%emt 0:01:27]} 24. Kc2 {[%emt 0:03:47]} b5 {[%emt 0:02:29]} 25. d4 {[%emt 0:02:57]} cxd4 {[%emt 0:00:44]} 26. Bxb5 {[%emt 0:00:39]} Rxa3 {[%emt 0:01:14]} 27. c4 {[%emt 0:01:03]} d3+ {[%emt 0:00:31]} 28. Kb1 {[%emt 0:00:07]} Rb3 {[%emt 0:00:30]} 0-1

[Event "EYCC Girls-U16 2019"]
[Site "Bratislava"]
[Date "2019.08.05"]
[Round "4.16"]
[White "Jarocka, Liwia"]
[Black "Mikic, Ivana"]
[Result "1/2-1/2"]
[ECO "C49"]
[WhiteElo "2102"]
[BlackElo "1884"]
[Annotator "NA"]
[PlyCount "83"]
[EventDate "2019.08.02"]
[EventType "swiss"]
[EventCountry "SVK"]
[SourceTitle "playchess.com"]
[Source "ChessBase"]
[SourceQuality "1"]
[TimeControl "40/5400+30:1800+30"]

1. e4 {[%emt 0:00:00]} e5 {[%emt 0:00:00]} 2. Nf3 {[%emt 0:00:00]} Nc6 {[%emt 0:00:00]} 3. Nc3 {[%emt 0:00:09]} Nf6 {[%emt 0:00:00]} 4. Bb5 {[%emt 0:00:07]} Bb4 {[%emt 0:00:10]} 5. O-O {[%emt 0:00:21]} O-O {[%emt 0:00:29]} 6. d3 {[%emt 0:00:12]} d6 {[%emt 0:01:01]} 7. Bg5 {[%emt 0:00:32]} Bxc3 {[%emt 0:02:34]} 8. bxc3 {[%emt 0:00:11]} a6 {[%emt 0:02:16]} 9. Bxc6 {[%emt 0:01:11]} bxc6 {[%emt 0:00:07]} 10. h3 {[%emt 0:13:15]} Qe7 {[%emt 0:05:35]} 11. Qc1 {[%emt 0:07:49]} h6 {[%emt 0:12:36]} 12. Bh4 {[%emt 0:06:13]} Qe6 {[%emt 0:02:54]} 13. Bxf6 {[%emt 0:04:54]} Qxf6 {[%emt 0:01:25]} 14. Qe3 {[%emt 0:02:05]} c5 {[%emt 0:00:30]} 15. Rab1 {[%emt 0:00:30]} Be6 {[%emt 0:00:30]} 16. c4 {[%emt 0:00:30]} Rfb8 {[%emt 0:00:30]} 17. Nd2 {[%emt 0:00:30]} Qg5 {[%emt 0:00:30]} 18. Qxg5 {[%emt 0:00:30]} hxg5 {[%emt 0:00:30]} 19. Rb3 {[%emt 0:00:30]} Rxb3 {[%emt 0:00:30]} 20. axb3 {[%emt 0:00:30]} a5 {[%emt 0:00:30]} 21. Ra1 {[%emt 0:00:30]} Bd7 {[%emt 0:00:30]} 22. Nb1 {[%emt 0:00:30]} Kf8 {[%emt 0:00:30]} 23. Nc3 {[%emt 0:00:30]} c6 {[%emt 0:00:30]} 24. Kf1 {[%emt 0:00:30]} Ke7 {[%emt 0:00:30]} 25. Ke2 {[%emt 0:00:30]} Be6 {[%emt 0:00:30]} 26. Kd2 {[%emt 0:00:30]} Kd7 {[%emt 0:00:30]} 27. Na4 {[%emt 0:00:30]} Ra6 {[%emt 0:00:30]} 28. Re1 {[%emt 0:00:30]} Ra7 {[%emt 0:00:30]} 29. Re3 {[%emt 0:00:30]} f6 {[%emt 0:00:30]} 30. Rg3 {[%emt 0:08:52]} Kd8 {[%emt 0:39:50]} 31. Kc3 {[%emt 0:00:12]} Re7 {[%emt 0:01:31]} 32. Kb2 {[%emt 0:00:13]} Kc7 {[%emt 0:00:27]} 33. Ka3 {[%emt 0:00:43]} Kb7 {[%emt 0:01:57]} 34. Nc3 {[%emt 0:03:07]} Ka6 {[%emt 0:00:30]} 35. Na4 {[%emt 0:00:30]} Kb7 {[%emt 0:00:30]} 36. Kb2 {[%emt 0:00:30]} Kc8 {[%emt 0:04:03]} 37. Re3 {[%emt 0:11:27]} Ra7 {[%emt 0:01:28]} 38. Re1 {[%emt 0:00:30]} Kb7 {[%emt 0:00:30]} 39. Rh1 {[%emt 0:00:30]} Ra8 {[%emt 0:00:30]} 40. Re1 {[%emt 0:00:00]} Rh8 {[%emt 0:00:00]} 41. Re3 {[%emt 0:01:39]} Rh4 {[%emt 0:02:37]} 42. Nc3 {[%emt 0:05:46]} 1/2-1/2

[Event "EYCC Girls-U16 2019"]
[Site "Bratislava"]
[Date "2019.08.05"]
[Round "4.17"]
[White "Pipia, Ekaterine"]
[Black "Esadze, Tamari"]
[Result "1/2-1/2"]
[ECO "D56"]
[WhiteElo "1945"]
[BlackElo "1997"]
[Annotator "NA"]
[PlyCount "67"]
[EventDate "2019.08.02"]
[EventType "swiss"]
[EventCountry "SVK"]
[SourceTitle "playchess.com"]
[Source "ChessBase"]
[SourceQuality "1"]
[TimeControl "40/5400+30:1800+30"]

1. d4 {[%emt 0:00:00]} d5 {[%emt 0:00:00]} 2. c4 {[%emt 0:00:00]} e6 {[%emt 0:00:00]} 3. Nf3 {[%emt 0:00:00]} Nf6 {[%emt 0:00:00]} 4. Nc3 {[%emt 0:00:00]} Be7 {[%emt 0:00:00]} 5. Bg5 {[%emt 0:00:00]} O-O {[%emt 0:00:00]} 6. e3 {[%emt 0:00:00]} h6 {[%emt 0:01:14]} 7. Bh4 {[%emt 0:00:00]} Nbd7 {[%emt 0:01:41]} 8. Rc1 {[%emt 0:00:02]} c6 {[%emt 0:00:50]} 9. Bd3 {[%emt 0:00:06]} dxc4 {[%emt 0:10:40]} 10. Bxc4 {[%emt 0:00:05]} Nd5 {[%emt 0:04:04]} 11. Bxe7 {[%emt 0:00:10]} Qxe7 {[%emt 0:00:05]} 12. Ne4 {[%emt 0:00:26]} f5 {[%emt 0:13:39]} 13. Ned2 {[%emt 0:07:16]} N5f6 {[%emt 0:08:15]} 14. Qb3 {[%emt 0:09:14]} Nd5 {[%emt 0:05:40]} 15. O-O {[%emt 0:02:20]} a5 {[%emt 0:03:26]} 16. a3 {[%emt 0:05:56]} Qf6 {[%emt 0:10:43]} 17. Bd3 {[%emt 0:06:19]} a4 {[%emt 0:02:47]} 18. Qa2 {[%emt 0:03:01]} Kh8 {[%emt 0:03:46]} 19. Nc4 {[%emt 0:03:22]} N5b6 {[%emt 0:05:31]} 20. Nxb6 Nxb6 21. Ne5 {[%emt 0:02:09]} Nd7 {[%emt 0:02:13]} 22. f4 {[%emt 0:02:00]} Nxe5 {[%emt 0:01:42]} 23. dxe5 {[%emt 0:00:27]} Qe7 {[%emt 0:03:56]} 24. e4 {[%emt 0:06:24]} Rd8 {[%emt 0:02:01]} 25. Qb1 {[%emt 0:01:24]} g6 {[%emt 0:02:24]} 26. Rf3 {[%emt 0:07:57]} Bd7 {[%emt 0:04:47]} 27. Bc2 {[%emt 0:01:06]} Be8 {[%emt 0:01:22]} 28. Rd1 {[%emt 0:01:29]} Rxd1+ {[%emt 0:01:54]} 29. Qxd1 {[%emt 0:00:53]} Rd8 {[%emt 0:00:33]} 30. Rd3 {[%emt 0:02:26]} Qc5+ {[%emt 0:02:29]} 31. Kh1 {[%emt 0:01:32]} Rxd3 {[%emt 0:00:28]} 32. Qxd3 {[%emt 0:02:53]} Qf2 {[%emt 0:01:20]} 33. h3 {[%emt 0:01:02]} Kg7 {[%emt 0:02:41]} 34. exf5 1/2-1/2

[Event "EYCC Girls-U16 2019"]
[Site "Bratislava"]
[Date "2019.08.05"]
[Round "4.18"]
[White "Laurincova, Kristyna"]
[Black "Simonova, Stela"]
[Result "1/2-1/2"]
[ECO "A13"]
[WhiteElo "1981"]
[BlackElo "1677"]
[Annotator "NA"]
[PlyCount "131"]
[EventDate "2019.08.02"]
[EventType "swiss"]
[EventCountry "SVK"]
[SourceTitle "playchess.com"]
[Source "ChessBase"]
[SourceQuality "1"]
[TimeControl "40/5400+30:1800+30"]

1. c4 {[%emt 0:00:00]} e6 {[%emt 0:00:00]} 2. g3 {[%emt 0:01:08]} f5 {[%emt 0:02:11]} 3. Bg2 {[%emt 0:05:04]} Nf6 {[%emt 0:00:29]} 4. Nc3 {[%emt 0:01:55]} c6 {[%emt 0:05:38]} 5. e3 {[%emt 0:10:14]} d5 {[%emt 0:01:46]} 6. b3 {[%emt 0:05:09]} Bd6 {[%emt 0:01:30]} 7. Nge2 {[%emt 0:00:37]} Nbd7 {[%emt 0:05:16]} 8. Qc2 {[%emt 0:03:49]} Qe7 {[%emt 0:05:29]} 9. cxd5 {[%emt 0:03:38]} Nxd5 {[%emt 0:05:19]} 10. Nxd5 {[%emt 0:01:50]} cxd5 {[%emt 0:01:28]} 11. Nd4 {[%emt 0:00:23]} Nf6 {[%emt 0:07:41]} 12. O-O {[%emt 0:12:03]} O-O {[%emt 0:01:17]} 13. Bb2 {[%emt 0:04:10]} Bd7 {[%emt 0:03:02]} 14. Qd3 {[%emt 0:08:37]} Ne4 {[%emt 0:03:33]} 15. Nf3 {[%emt 0:15:51]} a6 {[%emt 0:05:33]} 16. Rfc1 {[%emt 0:07:23]} Bb5 {[%emt 0:01:44]} 17. Qc2 {[%emt 0:02:06]} Qe8 {[%emt 0:14:46]} 18. a4 {[%emt 0:02:28]} Bd7 {[%emt 0:01:02]} 19. Ne5 {[%emt 0:05:09]} Rc8 {[%emt 0:07:01]} 20. Qd1 {[%emt 0:00:43]} Nc5 {[%emt 0:03:52]} 21. Bd4 {[%emt 0:03:38]} Qe7 {[%emt 0:05:32]} 22. d3 {[%emt 0:00:35]} Bc6 {[%emt 0:02:48]} 23. Rc3 {[%emt 0:02:28]} Nd7 {[%emt 0:00:50]} 24. Nxd7 {[%emt 0:00:03]} Bxd7 {[%emt 0:00:53]} 25. Rac1 {[%emt 0:00:42]} Rxc3 {[%emt 0:00:25]} 26. Rxc3 {[%emt 0:00:24]} Rc8 {[%emt 0:00:17]} 27. Qc2 {[%emt 0:01:21]} Rxc3 {[%emt 0:00:26]} 28. Qxc3 {[%emt 0:00:02]} Bb4 {[%emt 0:01:46]} 29. Qc7 {[%emt 0:00:29]} Bc6 {[%emt 0:01:13]} 30. Qb8+ {[%emt 0:01:00]} Qf8 {[%emt 0:01:02]} 31. Qe5 {[%emt 0:00:42]} Qe7 {[%emt 0:01:16]} 32. Qb8+ {[%emt 0:00:13]} Qf8 {[%emt 0:00:06]} 33. Qxf8+ {[%emt 0:00:46]} Kxf8 {[%emt 0:00:08]} 34. Be5 {[%emt 0:00:36]} g6 {[%emt 0:01:33]} 35. Kf1 {[%emt 0:00:28]} Ke7 {[%emt 0:00:06]} 36. Ke2 {[%emt 0:00:31]} Kf7 {[%emt 0:04:37]} 37. d4 {[%emt 0:01:27]} Bd7 {[%emt 0:01:27]} 38. Kf3 {[%emt 0:00:28]} Bf8 {[%emt 0:02:58]} 39. g4 {[%emt 0:00:38]} Be7 {[%emt 0:00:46]} 40. Kf4 {[%emt 0:00:00]} fxg4 {[%emt 0:00:00]} 41. Kxg4 {[%emt 0:00:47]} Bc6 {[%emt 0:02:32]} 42. Bf1 {[%emt 0:04:18]} Bd7 {[%emt 0:06:50]} 43. Bd3 {[%emt 0:04:45]} Bc6 {[%emt 0:01:24]} 44. Bf4 {[%emt 0:05:50]} Bd7 {[%emt 0:02:23]} 45. Be5 {[%emt 0:00:50]} Bc6 {[%emt 0:00:16]} 46. Kf4 {[%emt 0:00:44]} Bd7 {[%emt 0:04:19]} 47. Kf3 {[%emt 0:01:38]} Bc6 {[%emt 0:00:52]} 48. Ke2 {[%emt 0:00:07]} Bb4 {[%emt 0:00:12]} 49. Bc7 {[%emt 0:01:28]} Kf6 {[%emt 0:01:59]} 50. Bd8+ {[%emt 0:00:07]} Kf7 {[%emt 0:01:19]} 51. h4 {[%emt 0:00:52]} Kg7 {[%emt 0:03:07]} 52. Kf3 {[%emt 0:01:36]} Bd6 {[%emt 0:02:22]} 53. Kg4 {[%emt 0:01:07]} Be8 {[%emt 0:03:01]} 54. e4 {[%emt 0:01:40]} h6 {[%emt 0:01:18]} 55. e5 {[%emt 0:03:34]} Bb4 {[%emt 0:01:01]} 56. Bf6+ {[%emt 0:01:07]} Kf8 {[%emt 0:01:01]} 57. Kf4 {[%emt 0:01:17]} Bc3 {[%emt 0:01:10]} 58. Ke3 {[%emt 0:00:05]} Bb4 {[%emt 0:00:11]} 59. Be2 {[%emt 0:00:49]} Bf7 {[%emt 0:00:50]} 60. Bg4 {[%emt 0:00:44]} Ba5 {[%emt 0:01:25]} 61. Bh3 {[%emt 0:00:52]} Bg8 {[%emt 0:01:15]} 62. Kd3 {[%emt 0:00:48]} Bf7 {[%emt 0:00:51]} 63. Bg4 {[%emt 0:00:22]} Bb4 {[%emt 0:01:27]} 64. Bd8 {[%emt 0:00:10]} Ke8 {[%emt 0:00:21]} 65. Bb6 {[%emt 0:00:51]} a5 {[%emt 0:01:20]} 66. Be2 {[%emt 0:00:46]} 1/2-1/2

[Event "EYCC Girls-U16 2019"]
[Site "Bratislava"]
[Date "2019.08.05"]
[Round "4.19"]
[White "Czarnecka, Lidia"]
[Black "Filippova, Margarita"]
[Result "1-0"]
[ECO "C44"]
[WhiteElo "1731"]
[BlackElo "2029"]
[Annotator "NA"]
[PlyCount "113"]
[EventDate "2019.08.02"]
[EventType "swiss"]
[EventCountry "SVK"]
[SourceTitle "playchess.com"]
[Source "ChessBase"]
[SourceQuality "1"]
[TimeControl "40/5400+30:1800+30"]

1. e4 {[%emt 0:00:00]} e5 {[%emt 0:00:00]} 2. Nf3 {[%emt 0:00:35]} Nc6 {[%emt 0:00:00]} 3. d4 {[%emt 0:00:31]} exd4 {[%emt 0:00:00]} 4. Nxd4 {[%emt 0:00:39]} Nf6 {[%emt 0:00:04]} 5. Nxc6 {[%emt 0:01:19]} bxc6 {[%emt 0:00:12]} 6. Bd3 {[%emt 0:00:06]} d5 {[%emt 0:00:52]} 7. exd5 {[%emt 0:00:32]} cxd5 {[%emt 0:00:16]} 8. O-O {[%emt 0:00:08]} Be7 {[%emt 0:00:47]} 9. Bf4 {[%emt 0:01:29]} O-O {[%emt 0:00:44]} 10. Nc3 {[%emt 0:01:58]} c6 {[%emt 0:02:02]} 11. Qf3 {[%emt 0:03:23]} Be6 {[%emt 0:05:53]} 12. h3 {[%emt 0:06:58]} Qb6 {[%emt 0:04:30]} 13. b3 {[%emt 0:01:30]} c5 {[%emt 0:06:23]} 14. Bg5 {[%emt 0:08:45]} Rad8 {[%emt 0:07:35]} 15. Rad1 {[%emt 0:02:41]} h6 {[%emt 0:05:22]} 16. Na4 {[%emt 0:01:40]} Qc6 {[%emt 0:06:17]} 17. Bf4 {[%emt 0:03:46]} Qc8 {[%emt 0:05:49]} 18. Rfe1 {[%emt 0:05:50]} c4 {[%emt 0:03:15]} 19. Bf1 {[%emt 0:01:31]} Rfe8 {[%emt 0:03:26]} 20. Be5 {[%emt 0:01:20]} Rd7 {[%emt 0:10:52]} 21. Bd4 {[%emt 0:02:57]} Rc7 {[%emt 0:00:45]} 22. Nb2 {[%emt 0:11:56]} Rd8 {[%emt 0:01:28]} 23. Qe3 {[%emt 0:02:47]} Rdd7 {[%emt 0:03:57]} 24. c3 {[%emt 0:08:53]} Qa6 {[%emt 0:05:43]} 25. a4 {[%emt 0:07:59]} Qb7 {[%emt 0:01:07]} 26. b4 {[%emt 0:00:16]} Rc8 {[%emt 0:01:47]} 27. a5 {[%emt 0:00:46]} Bf5 {[%emt 0:03:29]} 28. Qf4 {[%emt 0:03:36]} Bg6 {[%emt 0:00:44]} 29. Be2 {[%emt 0:00:21]} Rcd8 {[%emt 0:02:28]} 30. Bf3 {[%emt 0:00:17]} Bc2 {[%emt 0:02:08]} 31. Rd2 {[%emt 0:01:18]} Be4 {[%emt 0:00:29]} 32. Bxe4 {[%emt 0:03:41]} Nxe4 {[%emt 0:00:11]} 33. Rde2 {[%emt 0:00:17]} Bg5 {[%emt 0:04:26]} 34. Qf3 {[%emt 0:00:15]} Qc6 {[%emt 0:00:52]} 35. Nd1 {[%emt 0:02:14]} Rd6 {[%emt 0:04:15]} 36. Ne3 {[%emt 0:00:15]} Bxe3 {[%emt 0:00:54]} 37. Rxe3 {[%emt 0:00:42]} a6 {[%emt 0:00:14]} 38. Qf4 {[%emt 0:01:12]} Rg6 {[%emt 0:00:41]} 39. h4 {[%emt 0:01:29]} Nf6 {[%emt 0:06:17]} 40. Re7 {[%emt 0:00:00]} Qc8 {[%emt 0:00:00]} 41. Qf3 {[%emt 0:14:21]} Rf8 {[%emt 0:10:06]} 42. Bxf6 {[%emt 0:03:52]} Rxf6 {[%emt 0:00:14]} 43. Qxd5 {[%emt 0:00:05]} Rf5 {[%emt 0:05:59]} 44. Qd7 {[%emt 0:02:10]} Qxd7 {[%emt 0:01:06]} 45. Rxd7 {[%emt 0:00:05]} Rc8 {[%emt 0:00:49]} 46. Rd6 {[%emt 0:00:18]} Rf6 {[%emt 0:01:30]} 47. Rxf6 {[%emt 0:00:12]} gxf6 {[%emt 0:00:03]} 48. Re7 {[%emt 0:00:23]} Kf8 {[%emt 0:00:23]} 49. Rd7 {[%emt 0:00:11]} Rc6 {[%emt 0:00:08]} 50. Kf1 {[%emt 0:00:30]} Ke8 {[%emt 0:00:07]} 51. Ra7 {[%emt 0:00:07]} Kf8 {[%emt 0:00:37]} 52. Ke2 {[%emt 0:00:05]} Kg7 {[%emt 0:00:03]} 53. Rd7 {[%emt 0:00:24]} Kg6 {[%emt 0:00:05]} 54. Ke3 {[%emt 0:00:07]} Re6+ {[%emt 0:00:30]} 55. Kf3 {[%emt 0:00:04]} Rc6 {[%emt 0:00:06]} 56. Kf4 {[%emt 0:00:13]} f5 {[%emt 0:00:36]} 57. Rd5 {[%emt 0:00:06]} 1-0

[Event "EYCC Girls-U16 2019"]
[Site "Bratislava"]
[Date "2019.08.05"]
[Round "4.20"]
[White "Bulatova, Kamaliya"]
[Black "Bardorz, Jana"]
[Result "1-0"]
[ECO "A45"]
[WhiteElo "2157"]
[BlackElo "1883"]
[Annotator "NA"]
[PlyCount "55"]
[EventDate "2019.08.02"]
[EventType "swiss"]
[EventCountry "SVK"]
[SourceTitle "playchess.com"]
[Source "ChessBase"]
[SourceQuality "1"]
[TimeControl "40/5400+30:1800+30"]

1. d4 {[%emt 0:00:00]} Nf6 {[%emt 0:00:00]} 2. Bf4 {[%emt 0:00:00]} g6 {[%emt 0:00:00]} 3. Nc3 {[%emt 0:00:00]} d5 {[%emt 0:01:50]} 4. e3 {[%emt 0:00:00]} c6 {[%emt 0:02:46]} 5. h4 {[%emt 0:02:08]} Bg7 {[%emt 0:05:41]} 6. Be2 {[%emt 0:00:20]} h6 {[%emt 0:05:46]} 7. Qd2 {[%emt 0:11:43]} Nbd7 {[%emt 0:06:18]} 8. g4 {[%emt 0:11:42]} Ne4 {[%emt 0:06:44]} 9. Nxe4 {[%emt 0:01:27]} dxe4 {[%emt 0:00:06]} 10. O-O-O {[%emt 0:04:14]} O-O {[%emt 0:02:50]} 11. Nh3 {[%emt 0:12:02]} Qb6 {[%emt 0:08:10]} 12. h5 {[%emt 0:06:27]} g5 {[%emt 0:02:40]} 13. Bxg5 {[%emt 0:08:50]} hxg5 {[%emt 0:04:16]} 14. Nxg5 {[%emt 0:00:29]} c5 {[%emt 0:05:02]} 15. Nxe4 {[%emt 0:01:29]} Qe6 {[%emt 0:03:29]} 16. Nc3 {[%emt 0:05:14]} Nf6 {[%emt 0:10:23]} 17. h6 {[%emt 0:04:36]} Bh8 {[%emt 0:01:26]} 18. f3 {[%emt 0:06:29]} Nh7 {[%emt 0:02:50]} 19. Rh5 {[%emt 0:01:37]} c4 {[%emt 0:05:30]} 20. Nd5 {[%emt 0:02:24]} Qd6 {[%emt 0:02:26]} 21. e4 {[%emt 0:02:21]} Be6 {[%emt 0:02:14]} 22. Bxc4 {[%emt 0:02:37]} Bxd5 {[%emt 0:01:29]} 23. Rxd5 {[%emt 0:00:49]} Qg6 {[%emt 0:00:43]} 24. Bd3 {[%emt 0:02:28]} Rad8 {[%emt 0:01:58]} 25. Rxd8 {[%emt 0:01:29]} Rxd8 {[%emt 0:00:07]} 26. c3 {[%emt 0:00:32]} Bf6 {[%emt 0:01:14]} 27. e5 {[%emt 0:00:44]} Bg5 {[%emt 0:00:20]} 28. f4 {[%emt 0:00:12]} 1-0